Cogmind - Beta 14 @@@ ROGUE MODE // 2024.08.13 @ 00:14:37 Player: dorusv Result: Destroyed by G-47 Trooper with Particle Gun Performance ------------- Evolutions (3) 1500 Regions Visited (5) 1000 Robots Destroyed (30) 150 Value Destroyed (907) 907 Prototype IDs (1) 20 Alien Tech Used (0) 0 Bonus (200) 200 TOTAL SCORE: 3777 Bonus ------- Entered Garrisons 200 Cogmind --------- Core Integrity 0/700 Matter 300/300 Energy 100/100 System Corruption 4% Temperature Cool (28) Movement Core (50) Location -7/Garrison Parts ------- > --- POWER (2) -------- (None) > --- PROPULSION (4) --- (None) > --- UTILITY (4) ------ (None) > --- WEAPON (3) ------- (None) > --- INVENTORY (5) ---- VTOL Module Peak State ------------ > --- POWER ------------ Light Ion Engine Light Angular Momentum Engine > --- PROPULSION ------- Improved Carbon-fiber Leg Improved Carbon-fiber Leg VTOL Module VTOL Module > --- UTILITY ---------- Advanced Heat Sink Small Storage Unit Compact Battery Advanced Terrain Scan Processor > --- WEAPON ----------- Precision Beam Rifle Heavy Laser Autogun > --- INVENTORY -------- Improved Carbon-fiber Leg Improved Carbon-fiber Leg Autogun [Rating: 42] Favorites ----------- Power Light Ion Engine Engine Light Ion Engine Propulsion Aluminum Leg Leg Aluminum Leg Flight Unit VTOL Module Utility Small Storage Unit Device Advanced Heat Sink Storage Small Storage Unit Processor Signal Interpreter Protection Improved Light Armor Plating Weapon Medium Laser Energy Gun Medium Laser Ballistic Gun Minigun Build | -11 -10 -9 -8 -7 -7 ------- Run | Yrd Mat Mat Mat Fac Gar Slots Evolved 6 | . . 2 2 2 . Power 1 | . . . 1 . . Propulsion 2 | . . . . 2 . Utility 2 | . . 2 . . . Weapon 1 | . . . 1 . . Parts Attached 37 | 6 1 5 18 1 6 Power 5 | 1 . 1 3 . . Engine 5 | 1 . 1 3 . . Core . | . . . . . . Reactor . | . . . . . . Propulsion 10 | 2 . . 4 . 4 Treads . | . . . . . . Leg 8 | 2 . . 4 . 2 Wheel . | . . . . . . Hover . | . . . . . . Flight 2 | . . . . . 2 Utility 8 | 1 1 2 4 . . Device 1 | . . . 1 . . Storage 2 | 1 . . 1 . . Processor 3 | . . 2 1 . . Hackware . | . . . . . . Protection 2 | . 1 . 1 . . Artifact . | . . . . . . Weapon 14 | 2 . 2 7 1 2 Energy Gun 10 | 2 . 2 5 1 . Energy Cannon . | . . . . . . Ballistic Gun 4 | . . . 2 . 2 Ballistic Cannon . | . . . . . . Launcher . | . . . . . . Special Weapon . | . . . . . . Impact Weapon . | . . . . . . Slashing Weapon . | . . . . . . Piercing Weapon . | . . . . . . Special Melee Weapon . | . . . . . . Unidentified Prototypes 1 | . . . 1 . . Corrupted Parts 2 | . . . 2 . . System Corruption 5 | . . . 5 . . Parts Lost 30 | . . 9 5 . 16 Power 5 | . . 2 1 . 2 Propulsion 7 | . . 2 . . 5 Utility 6 | . . 1 1 . 4 Weapon 12 | . . 4 3 . 5 Highest Loss Streak 12 | . . 4 5 . 12 To Critical Strikes . | . . . . . . Average Slot Usage (%) 77 | . 97 78 74 84 69 Engine 8 | . 14 6 8 15 9 Leg 13 | . 28 18 6 15 13 Device 2 | . . . 3 7 5 Storage 10 | . 14 11 9 15 11 Processor 13 | . . 16 17 7 7 Protection 4 | . 11 5 4 . . Energy Gun 18 | . 28 19 17 21 11 Ballistic Gun 3 | . . . 6 1 3 Peak Build Rating 42 | 6 7 10 36 39 42 Average Rating 17 | 4 6 7 21 37 30 On Entrance 15 | . 6 7 4 36 39 Naked Turns . | . . . . . . Heaviest Build 29 | 12 15 15 26 29 29 Greatest Support 36 | 20 20 20 36 36 36 Greatest Overweight (x) 7 | 1 . 2 7 . 6 Average Overweight (x) . | . . . 2 . . Largest Inventory Capacity 8 | 8 8 8 8 8 8 Average Capacity 7 | 7 8 8 8 8 7 Most Carried 4 | 2 3 2 3 2 4 Average Carried 1 | 1 2 1 . 2 2 Final Capacity 8 | 8 8 8 8 8 5 Final Carried 2 | 2 2 1 2 2 1 Class Distribution -------------------- 50% | Mutant 22% | Tank 18% | Scavenger-Gunner 8% | Scavenger-Mutant Dominant Class ---------------- Mutant | -10/Materials Mutant | -9/Materials Tank | -8/Materials Scavenger-Gunner | -7/Factory Mutant | -7/Garrison Resources | -11 -10 -9 -8 -7 -7 ----------- Run | Yrd Mat Mat Mat Fac Gar Matter Collected 594 | 251 10 23 279 . 31 Remotely . | . . . . . . Salvage Created 1100 | . 68 305 536 . 191 Parts 78 | . 11 15 39 . 13 Haulers Intercepted 1 | . . . 1 . . Recyclers Shooed 2 | . . 1 1 . . Parts Field Recycled . | . . . . . . Retrieved Matter . | . . . . . . Parts Self-Destructed . | . . . . . . Prevented . | . . . . . . Kills | -11 -10 -9 -8 -7 -7 ------- Run | Yrd Mat Mat Mat Fac Gar Combat Hostiles Destroyed 26 | . 4 6 11 . 5 Melee 1 | . . . . . 1 Guns 23 | . 4 4 11 . 4 Classes Destroyed 8 | . 2 1 5 . . Worker 1 | . . . 1 . . Builder 1 | . . . 1 . . Hauler 1 | . . . 1 . . Operator 1 | . . . 1 . . Swarmer 10 | . 3 . 4 . 3 Grunt 9 | . 1 3 3 . 2 Sentry 6 | . . 3 3 . . Hunter 1 | . . . 1 . . Best Kill Streak 6 | . 4 3 6 . 3 Combat Bots Only 4 | . 4 3 4 . 3 Max Kills in Single Turn 2 | . 2 1 2 . 1 Gunslinging 1 | . 1 . . . . Exploded . | . . . . . . Melee 1 | . . . . . 1 Uniques/NPCs Destroyed . | . . . . . . Combat | -11 -10 -9 -8 -7 -7 -------- Run | Yrd Mat Mat Mat Fac Gar Hostile Shots Fired 347 | . 13 93 75 . 166 Missed 85 | . 6 20 19 . 40 Damage Taken 3775 | . 69 981 825 . 1900 Core 1229 | . 19 355 152 . 703 Absorbed by Shields . | . . . . . . Core Remaining (%) 68 | 100 92 11 72 . . Volleys Fired 95 | . 8 31 42 . 14 Largest 3 | . 2 2 3 . 3 Hottest 199 | . 100 100 150 . 199 Shots Fired 190 | . 16 55 89 . 30 Gun 190 | . 16 55 89 . 30 Cannon . | . . . . . . Launcher . | . . . . . . Special . | . . . . . . Kinetic 34 | . . . 25 . 9 Thermal 147 | . 16 52 58 . 21 Explosive . | . . . . . . Electromagnetic 9 | . . 3 6 . . Robot Hit Streak 9 | . 3 9 8 . 6 Robot Miss Streak 3 | . 2 3 3 . 2 Penetration Max . | . . . . . . Secondary Targets 5 | . 1 . 2 . 2 Max Gunslinging Chain 1 | . 1 . 1 . 1 Shots Hit Robots 114 | . 7 38 52 . 17 Core Hits 52 | . 5 12 23 . 12 Critical Kills . | . . . . . . Critical Parts Destroyed . | . . . . . . Critical Strikes 10 | . . 2 6 . 2 Burn 10 | . . 2 6 . 2 Melee Attacks . | . . . . . . Impact . | . . . . . . Slashing . | . . . . . . Piercing . | . . . . . . Sneak Attacks . | . . . . . . Combat Hostiles . | . . . . . . Follow-up Attacks . | . . . . . . Damage Inflicted 1943 | 5 87 519 950 . 382 Guns 1867 | . 87 490 938 . 352 Cannons . | . . . . . . Explosions . | . . . . . . Melee . | . . . . . . Ramming 76 | 5 . 29 12 . 30 Kinetic 321 | . . . 203 . 118 Thermal 1463 | . 87 462 680 . 234 Explosive . | . . . . . . Electromagnetic 83 | . . 28 55 . . Impact . | . . . . . . Slashing . | . . . . . . Piercing . | . . . . . . Highest Corruption 5 | . . 1 5 . 2 Average Corruption 4 | . . 1 4 . 2 Corruption Purged . | . . . . . . Corruption Blocked . | . . . . . . Effects 8 | . . . 8 . . Message Errors 3 | . . . 3 . . Matter Fused 2 | . . . 2 . . Heat Flow Errors 2 | . . . 2 . . Data Loss (major) 1 | . . . 1 . . Overload Shots . | . . . . . . Overflow Damage . | . . . . . . Projectiles . | . . . . . . Explosions . | . . . . . . Melee . | . . . . . . Knockbacks . | . . . . . . Impact . | . . . . . . Kinetic . | . . . . . . Secondary . | . . . . . . Self-Inflicted Damage 14 | . . . . . 14 Shots . | . . . . . . Rammed 7 | . . . . . 7 Targets Rammed 17 | 1 1 6 2 . 7 Kicked 10 | 1 1 6 2 . . Crushed . | . . . . . . Highest Temperature 588 | . 265 254 588 . 99 Average Temperature 138 | . 100 110 213 . 48 Received Heat Transfer 1896 | . 18 519 306 . 1053 Effects 12 | . . . 12 . . Shutdowns 2 | . . . 2 . . Energy Bleed 1 | . . . 1 . . Matter Decay 1 | . . . 1 . . Short Circuit 2 | . . . 2 . . Damage (minor) 2 | . . . 2 . . Damage (major) 4 | . . . 4 . . Siege Activations . | . . . . . . Robots Corrupted . | . . . . . . Combat Hostiles . | . . . . . . Parts Fried . | . . . . . . Impact Corruptions . | . . . . . . Robots Melted 2 | . . 2 . . . Combat Hostiles 2 | . . 2 . . . Parts Melted 9 | . . 1 6 . 2 Heat Transferred 4231 | . 259 1493 1850 . 629 Parts Sabotaged . | . . . . . . Parts Stolen . | . . . . . . Parts Stripped . | . . . . . . Power Chain Reactions . | . . . . . . Alert | -11 -10 -9 -8 -7 -7 ------- Run | Yrd Mat Mat Mat Fac Gar Peak Influence 231 | . 145 231 212 83 133 Initial 83 | . . 61 8 83 58 Average 76 | . 33 159 51 83 86 Maximum Alert Level 1 | . . 1 1 . . Low Security (%) 90 | 100 100 60 97 100 100 Level 1 9 | . . 39 2 . . Level 2 . | . . . . . . Level 3 . | . . . . . . Level 4 . | . . . . . . Level 5 . | . . . . . . High Security . | . . . . . . Max Security . | . . . . . . Squads Dispatched 1 | . 1 . . . . Investigation . | . . . . . . Extermination . | . . . . . . Reinforcement 1 | . 1 . . . . Assault . | . . . . . . Garrison . | . . . . . . Intercept . | . . . . . . Searches Triggered . | . . . . . . Construction Impeded . | . . . . . . Haulers Reinforced . | . . . . . . Active Scanning Responses . | . . . . . . Cargo Convoy Interrupts . | . . . . . . Stealth | -11 -10 -9 -8 -7 -7 --------- Run | Yrd Mat Mat Mat Fac Gar Distress Signals 3 | . . 3 . . . Communications Jammed . | . . . . . . Distress Signals . | . . . . . . Times Spotted 49 | . 7 17 12 . 13 Peak Tracking Total 9 | . 4 9 4 . 9 Tactical Retreats 4 | . 1 1 . . 2 Traps | -11 -10 -9 -8 -7 -7 ------- Run | Yrd Mat Mat Mat Fac Gar Traps Triggered 3 | . . 1 1 . 1 Indirectly . | . . . . . . Trap Hack Attempts . | . . . . . . Triggered . | . . . . . . Disarmed . | . . . . . . Reprogrammed . | . . . . . . Reused . | . . . . . . Traps Extracted . | . . . . . . Installed . | . . . . . . Triggered . | . . . . . . Machines | -11 -10 -9 -8 -7 -7 ---------- Run | Yrd Mat Mat Mat Fac Gar Machines Disabled 2 | . . . 2 . . Max in Single Turn 1 | . . . 1 . . Machines Repaired . | . . . . . . Machines Dismantled . | . . . . . . Machines Sabotaged . | . . . . . . Overloaded Fab Kills . | . . . . . . Hacking | -11 -10 -9 -8 -7 -7 --------- Run | Yrd Mat Mat Mat Fac Gar Machines Accessed 5 | . 1 . 3 1 . Terminals 2 | . 1 . 1 . . Fabricators . | . . . . . . Repair Stations 1 | . . . 1 . . Recycling Units . | . . . . . . Scanalyzers 1 | . . . 1 . . Garrison Access 1 | . . . . 1 . Total Hacks 11 | . 2 . 7 2 . Successful 6 | . 2 . 3 1 . Failed 5 | . . . 4 1 . Catastrophic . | . . . . . . Database Lockouts . | . . . . . . Manual . | . . . . . . Terminals 5 | . 2 . 3 . . Fabricators . | . . . . . . Repair Stations 2 | . . . 2 . . Recycling Units . | . . . . . . Scanalyzers 2 | . . . 2 . . Garrison Access 2 | . . . . 2 . Terminal Hacks 3 | . 2 . 1 . . Transport Status 1 | . 1 . . . . Zone Layout 2 | . 1 . 1 . . Fabricator Hacks . | . . . . . . Repair Station Hacks . | . . . . . . Recycling Unit Hacks . | . . . . . . Scanalyzer 2 | . . . 2 . . Insert Component 1 | . . . 1 . . Analyze 1 | . . . 1 . . Garrison Access Hacks 1 | . . . . 1 . Unlock Access 1 | . . . . 1 . Unauthorized Hacks . | . . . . . . Terminals . | . . . . . . Fabricators . | . . . . . . Repair Stations . | . . . . . . Recycling Units . | . . . . . . Scanalyzers . | . . . . . . Garrison Access . | . . . . . . Data Cores Recovered . | . . . . . . Used . | . . . . . . Hacking Detections 3 | . . . 3 . . Full Trace Events 1 | . . . 1 . . Feedback Events . | . . . . . . Feedback Blocked . | . . . . . . Robot Schematics Acquired . | . . . . . . Robots Built . | . . . . . . Authchips . | . . . . . . Time . | . . . . . . Total Robot Build Rating . | . . . . . . Part Schematics Acquired 1 | . . . 1 . . Parts Built . | . . . . . . Authchips . | . . . . . . Time . | . . . . . . Total Part Build Rating . | . . . . . . Parts Repaired . | . . . . . . Time . | . . . . . . Parts Recycled . | . . . . . . Recycled Matter . | . . . . . . Retrieved Matter . | . . . . . . Retrieved Components . | . . . . . . Parts Scanalyzed 1 | . . . 1 . . Part Schematics Acquired 1 | . . . 1 . . Parts Damaged . | . . . . . . Bothacking | -11 -10 -9 -8 -7 -7 ------------ Run | Yrd Mat Mat Mat Fac Gar Used RIF Installer . | . . . . . . Robots Hacked . | . . . . . . Non-combat . | . . . . . . Combat . | . . . . . . Robot Hacks Applied . | . . . . . . Relay Couplers Released . | . . . . . . Fabnet Peak Effective % . | . . . . . . Robots Rewired . | . . . . . . Allies Hacked . | . . . . . . Hacks Repelled . | . . . . . . Allies | -11 -10 -9 -8 -7 -7 -------- Run | Yrd Mat Mat Mat Fac Gar Total Allies . | . . . . . . Largest Group . | . . . . . . Highest-Rated Group . | . . . . . . Highest-Rated Ally . | . . . . . . Total Orders . | . . . . . . Ally Attacks . | . . . . . . Total Damage . | . . . . . . Kills . | . . . . . . Allies Corrupted . | . . . . . . Allies Melted . | . . . . . . Intel | -11 -10 -9 -8 -7 -7 ------- Run | Yrd Mat Mat Mat Fac Gar Robot Analysis Total . | . . . . . . Derelict Logs Recovered . | . . . . . . Drone Launches . | . . . . . . Drone Recoveries . | . . . . . . Exploration | -11 -10 -9 -8 -7 -7 ------------- Run | Yrd Mat Mat Mat Fac Gar Turns Passed 1925 | 78 206 419 921 39 262 Spaces Moved 1046 | 51 150 266 392 31 156 Core 213 | 3 . 29 180 . 1 Treads . | . . . . . . Legs 828 | 48 150 237 212 31 150 Wheels . | . . . . . . Hover . | . . . . . . Flight 5 | . . . . . 5 Fastest Speed 50 | 50 120 100 100 120 50 Average Speed 150 | 129 120 120 196 120 128 Slowest Speed 535 | 190 120 190 400 120 535 Overloaded Moves . | . . . . . . Propulsion Burnouts . | . . . . . . Robots Hopped . | . . . . . . Cave-ins Triggered . | . . . . . . Exploration Rate (%) 19 | 5 34 23 25 1 30 Regions Visited 5 Branch Regions . Pre-discovered Areas . | . . . . . . Known Exits Taken 2 | . . 1 . 1 . Unknown Exits Taken 3 | 1 1 . 1 . . Scrap Searched . | . . . . . . Spaces Dug . | . . . . . . Terrain Destroyed . | . . . . . . Melee . | . . . . . . Projectile . | . . . . . . AOE . | . . . . . . Terrain Rammed . | . . . . . . Walls Destroyed . | . . . . . . Machines Disabled . | . . . . . . Actions | -11 -10 -9 -8 -7 -7 --------- Run | Yrd Mat Mat Mat Fac Gar Total 1216 | 59 160 308 465 33 191 Wait . | . . . . . . Move 1038 | 50 149 265 391 30 153 Hop . | . . . . . . Pick Up 8 | 2 1 1 3 . 1 Fast Attach 33 | 6 . 3 17 1 6 Attach 4 | . 1 2 1 . . Detach 7 | . . . 5 1 1 Swap . | . . . . . . Drop 8 | . . . 4 1 3 Fire 95 | . 8 31 42 . 14 Melee . | . . . . . . Ram 7 | . . . . . 7 Kick 10 | 1 1 6 2 . . Crush . | . . . . . . Escape Stasis 6 | . . . . . 6 Rewire . | . . . . . . Trap . | . . . . . . Miscellaneous . | . . . . . . Route ------- -11/Scrapyard -10/Materials -9/Materials -8/Materials -7/Factory -7/Garrison (discovered 1 exit: [*Fac]) History --------- Turn | Location | Event 8 | -11/Scrapyard | Discovered new exit (range 16) 79 | -11/Scrapyard | Entered Materials 266 | -10/Materials | Discovered new exit (range 10) 285 | -10/Materials | Entered another Materials area 285 | -9/Materials | Evolved 2 slots: Utility x2 306 | -9/Materials | Build established: Mutant 656 | -9/Materials | Lost 3 parts (1n2w) 676 | -9/Materials | Core integrity fell below 50% 691 | -9/Materials | Core integrity fell below 20% 693 | -9/Materials | Discovered new exit (range 7) 702 | -9/Materials | Identified exit to Materials 704 | -9/Materials | Entered another Materials area 704 | -8/Materials | Evolved 2 slots: Power x1, Weapon x1 708 | -8/Materials | Lost 4 parts (1p1n2w) 1071 | -8/Materials | Build established: Tank 1267 | -8/Materials | Lost 5 parts (1p1u3w) 1613 | -8/Materials | Discovered new exit (range 10) 1625 | -8/Materials | Entered Factory 1625 | -7/Factory | Evolved 2 slots: Propulsion x2 1660 | -7/Factory | Identified exit to Garrison 1664 | -7/Factory | Entered Garrison 1818 | -7/Garrison | Triggered checkpoint 1897 | -7/Garrison | Discovered new exit (range 9) 1909 | -7/Garrison | Attempted to access garrison exit controls, blocked by remote lockdown 1915 | -7/Garrison | Lost 12 parts (2p3n3u4w) 1921 | -7/Garrison | Core integrity fell below 50% 1925 | -7/Garrison | Core integrity fell below 20% 1926 | -7/Garrison | Destroyed by G-47 Trooper with Particle Gun Last Messages --------------- 01909_ Attempting to access garrison exit controls... 01909_ Remote lockdown engaged. 01918_ Imp. Carbon-fiber Leg destroyed. 01919_ Slammed into G-47 Trooper. 01919_ G-47 Trooper destroyed. [Achievement: Fist Fight] 01919_ Adv. Terrain Scan Processor broken. 01919_ Destabilizing: Short circuit. 01920_ Acquired 16 matter. 01920_ Slammed into G-47 Trooper. 01920_ Destabilizing: System corrupted (+2). 01921_ Critical hit (Burn: +37). 01921_ Slammed into G-47 Trooper. 01923_ Critical hit (Burn: +37). 01924_ Slammed into G-47 Trooper. 01926_ Slammed into Y-54 Guardian. 01926_ Broken Adv. Terrain Scan Processor destroyed. 01926_ System corrupted by crushing effect (+2). Map ----- +----------------------------------------------------+ | ????????????????????????? ???????" "? | | ????????????????????????? ???????# ## ## #? | | ???????????????????????##+######## ## ## ## | | ???????????????????????# | | ???????????????????????# ! | | ???????????????????????# ######## *% ## | | ???????????????????????# #??????## ## ## ##? | | ???????????????????????# #???????# ## #? #?? | | ???????????????????????# +???????# #######?? #?? | | ???????????????????????# #???????# #???????? #?? | | ???????????????????????# #???????# #?????????#?? | | ???????????????????????# #???????# #???????????? | | ????????????######"""### #####+### #???????????? | | ???????????# #???????????? | | ???????????# #???????????? | | ????????????######"""### ############???????????? | | ???????????????????????# #??????????????????????? | | ???????????????????????# #??????????????????????? | | ???????????????????????# #??????????????????????? | | ???????????????????????# #??????????????????????? | | ???????????????????????# #??????????????????????? | | ???????????????????????# #??????????????????????? | | ???????????????????????# #??????????????????????? | | ???????????????????????# #??????????????????????? | | ???????????????????????#gY#??????????????????????? | | ??????????????##########g@#??????????????????????? | | ??????????????# g%g%#??????????????????????? | | ??????????????# =%!gg#??????????????????????? | | ??????????????# < #########??????????????????????? | | ??????????????# #??????????????????????????????? | | ??????????????#####??????????????????????????????? | | ?????????????????????????????????????????????????? | | ?????????????????????????????????????????????????? | | ?????????????????????????????????????????????????? | | ?????????????????????????????????????????????????? | | ?????????????????????????????????????????????????? | | ?????????????????????????????????????????????????? | | ?????????????????????????????????????????????????? | | ?????????????????????????????????????????????????? | | ?????????????????????????????????????????????????? | | ?????????????????????????????????????????????????? | | ?????????????????????????????????????????????????? | | ?????????????????????????????????????????????????? | | ?????????????????????????????????????????????????? | | ?????????????????????????????????????????????????? | | ?????????????????????????????????????????????????? | | ?????????????????????????????????????????????????? | | ?????????????????????????????????????????????????? | | ?????????????????????????????????????????????????? | | | +----------------------------------------------------+ Best States ------------- Heat Dissipation 53 Energy Generation 23 Energy Capacity 375 Matter Stores 300 Matter Capacity 300 Sight Range 16 Terrain Scan Density 210 Armor Coverage 150 Evasion (%) 55 Item Schematics ----------------- Ion Engine | -8/Materials | Scanalyzed Robot Schematics ------------------ None Fabricated ------------ Nothing Alien Tech Used ----------------- None Achievements -------------- Fist Fight Loot Pinata Challenges ------------ None Game ------ Seed GravitonOpticalWand Manual? 0 Play Time 00:19:23 Cumulative 2.1 hours Start 2024.08.12 @ 23:57:39 End 2024.08.13 @ 00:14:37 Sessions 1 Manual Loads 0 Difficulty Rogue Special Mode None Game No. 9 Rogue 6 Adventurer 3 Explorer 0 Win Type - Total 0 Types 0/0/0/0/0/0/0/0/0 Lore% 8 Gallery% 7 Achievement% 8 Wizard Run 0 Options --------- Layout 1 ASCII 0 Keyboard 1 Movement Arrows Keybinds 0 Fullscreen 1 Font 28/Smallcaps Map View 50x43 Zoom Use 0% Tactical HUD 1 Map Filters NONE Filters NONE Steam 1 RUN: 8401d18f-30bf-4edf-95b0-2ceab5444128